Workbook

Sheet Ark1
C3: Tilskuddskalkulator 2021
C4: Vet du hvor mye din kommune får i tilskudd fra IMDi i 2021? Denne kalkulatoren hjelper deg å beregne tilskuddene knyttet til flyktninger og innvandrere for 2021 med satser i statsbudsjett for 2021.
C6: For å bruke kalkulatoren, trykk først på knappen "Aktiver innhold" helt øverst, så vil det komme opp en dialogboks, trykk deretter på "Ja". Dette er for å aktivere Makroer. Gå til de aktuelle tilskuddsordninger for å se hvilke satser som gjelder i år og sett inn antall personer som utløser de ulike satsene i kolonnen som heter Sett inn antall. Ved behov for mer informasjon om det enkelte tilskudd, kan man trykke på knappen , og få ytterligere informasjon om satsene. For å se totalt tilskuddsbeløp for ordningene samlet, trykk "Gå til oppsummeringstabellen" nederst. Du kan nullstille beløp og antall i en bestemt tabell ved å trykke på "Nullstill denne tabellen" ved siden av i tabellen, eller i hele arket alt ved å trykke på nullstillknappen nederst på arket. For å estimere deling av tilskudd mellom kommuner er det også mulig å legge inn desimaltall, husk å bruke komma om du vil legge inn desimaltall. Delingsnøkler finnes i de respektive rundskrivene.
C7: Har du spørsmål til IMDi? Send e-post til post@imdi.no med emnet "Tilskuddskalkulator".
C9: Integreringstilskudd, eldretilskudd og barnehagetilskudd
C10: Ordningen gjelder i all hovedsak flyktninger og deres familiegjenforente som ble bosatt i perioden 2016-2020. Det er forskjellige satser som gjelder avhengig av hvilket år personene ble bosatt for første gang, og hvilken kategori de tilhører.
C11: Les mer om ordningen på imdi.no.
C13: Tilskuddsår | D13: Bosettingsår | E13: Kategori | G13: Sats | H13: Sett inn antall | I13: Tilskuddsbeløp
C14: Integreringstilskudd år 1 | D14: 2021 | E14: Enslige voksne | G14: 241000 | I14: =G14*H14 -> 0
E15: Voksne | G15: 194300 | I15: =G15*H15 -> 0
E16: Enslige mindreårige | G16: 187000 | I16: 0
E17: Barn | G17: 194300 | I17: 0
C18: Integreringstilskudd år 2 | D18: 2020 | E18: Alle flyktninger | G18: 249000 | I18: 0
C19: Integreringstilskudd år 3 | D19: 2019 | E19: Alle flyktninger | G19: 177300 | I19: 0
C20: Integreringstilskudd år 4 | D20: 2018 | E20: Alle flyktninger | G20: 88000 | I20: 0
C21: Integreringstilskudd år 5 | D21: 2017 | E21: Alle flyktninger | G21: 72000 | I21: 0
C22: Barnehagetilskudd | D22: 2021 | E22: Barn 0-5 år | G22: 27100 | I22: 0
C23: Eldretilskudd | D23: 2021 | E23: Voksne over 60 år | G23: 176000 | I23: 0
I24: =SUM(I14:I23) -> 0
C28: Særskilt tilskudd for bosetting av enslige mindreårige flyktninger
C29: Enslige mindreårige (EM) er en fellesbetegnelse for alle barn og unge under 18 år som kommer til landet uten foreldre eller andre voksne med foreldreansvar i Norge. Det er forskjellige satser som gjelder avhengig av barnets alder og bosettingstidspunkt. Tilskuddet utbetales til og med året den enslige mindreårige fyller 20 år.
C30: Les mer om ordningen på imdi.no.
C32: Bosettingstidspunkt | D32: Lav sats | E32: Sett inn antall | G32: Høy sats | H32: Sett inn antall | J32: Tilskuddsbeløp
C33: Før 2021 | D33: 705000 | G33: 1118000 | J33: =D33*E33+G33*H33 -> 0
C34: 2021-01-01 | D34: =D33 -> 705000 | G34: =G33 -> 1118000 | J34: 0
C35: 2021-02-01 | D35: =$D$33*11/12 -> 646250 | G35: =$G$33*11/12 -> 1024833.333 | J35: 0
C36: 2021-03-01 | D36: =$D$33*10/12 -> 587500 | G36: =$G$33*10/12 -> 931666.6667 | J36: 0
C37: 2021-04-01 | D37: =$D$33*9/12 -> 528750 | G37: =$G$33*9/12 -> 838500 | J37: 0
C38: 2021-05-01 | D38: =$D$33*8/12 -> 470000 | G38: =$G$33*8/12 -> 745333.3333 | J38: 0
C39: 2021-06-01 | D39: =$D$33*7/12 -> 411250 | G39: =$G$33*7/12 -> 652166.6667 | J39: 0
C40: 2021-07-01 | D40: =$D$33*6/12 -> 352500 | G40: =$G$33*6/12 -> 559000 | J40: 0
C41: 2021-08-01 | D41: =$D$33*5/12 -> 293750 | G41: =$G$33*5/12 -> 465833.3333 | J41: 0
C42: 2021-09-01 | D42: =$D$33*4/12 -> 235000 | G42: =$G$33*4/12 -> 372666.6667 | J42: 0
C43: 2021-10-01 | D43: =$D$33*3/12 -> 176250 | G43: =$G$33*3/12 -> 279500 | J43: 0
C44: 2021-11-01 | D44: =$D$33*2/12 -> 117500 | G44: =$G$33*2/12 -> 186333.3333 | J44: 0
C45: 2021-12-01 | D45: =$D$33*1/12 -> 58750 | G45: =$G$33*1/12 -> 93166.66667 | J45: 0
C47: Totalt | J47: =SUM(J33:J46) -> 0
C51: Tilskudd til opplæring i norsk og samfunnskunnskap for voksne innvandrere
C52: Kommunen mottar dette tilskuddet for voksne innvandrere som bor i kommunen og som har rett og plikt til opplæring i norsk og samfunnskunnskap. Tilskuddet utbetales per person i målgruppen (persontilskudd), som regel over tre år. Kommunene som har 150 personer eller færre i målgruppen, får også et grunntilskudd.
C53: Les mer om ordningen på imdi.no.
C55: Tilskudd* | D55: Lav sats | E55: Antall personer i kommunen med lav sats | G55: Høy sats | H55: Antall personer i kommunen med høy sats | J55: Tilskuddsbeløp
C56: Persontilskudd år 1 (2021) | D56: 14800 | G56: 34800 | J56: =D56*E56+G56*H56 -> 0
C57: Persontilskudd år 2 (2020) | D57: 26700 | G57: 69100 | J57: =D57*E57+G57*H57 -> 0
C58: Persontilskudd år 3 (2019) | D58: 16600 | G58: 47900 | J58: 0
C59: Grunntilskudd for 2021 | D59: 204700 | E59: Velg beløpet for Grunntilskudd her | G59: 610000 | H59: 5 | J59: Velg beløpet for Grunntilskudd her
C60: Totalt | J60: =SUM(J56:J59) -> 0
C61: *I kolonnen ‘tilskudd’ indikerer årstallene i parentes det året som personene som utløser persontilskuddet kom inn i målgruppen. | J61: =SUM(E56:E58)+SUM(H56:H58) -> 0
C64: Tilskudd for bosetting av personer med nedsatt funksjonsevne og/eller atferdsvansker
C65: Kommunen mottar dette tilskuddet ved bosetting av flyktninger med alvorlige, kjente funksjonshemminger og/eller atferdsvansker.Tilskuddsordningen skal dekke ekstraordinære kommunale utgifter som følger av bosetting av flyktninger med nedsatt fysisk og/eller psykisk funksjonsevne; samt personer med voldelig adferd og rusproblemer eller alvorlige atferdsproblemer. Satsen avhenger av når vedkommende er bosatt. Ordningen består av to typer tilskudd: Tilskudd 1 og Tilskudd 2. Tilskudd 1 er et engangstilskudd og kan tildeles i enten første eller andre bosettingsår. Tilskudd 2 kan tildeles årlig i integreringstilskuddsperioden, det vil si i maksimalt 5 år.
C66: Les mer om ordningen på imdi.no.
C68: Bosettingstidspunkt | D68: Tilskudd 1 | E68: Antall personer med tilskudd 1 | G68: Tilskudd 2 (maks. sats) | H68: Stipulert inntekt for tilskudd 2 | J68: Tilskuddsbeløp T1 +T2
C69: 2021 | D69: 196400 | G69: 1430000 | J69: =D69*E69+H69 -> 0
C70: 2020 | D70: 190500 | G70: 1361000 | J70: =D70*E70+H70 -> 0
C71: 2019 | D71: 190800 | G71: 1320000 | J71: 0
C72: 2018 | D72: 190800 | G72: 1235000 | J72: 0
C73: Totalt | J73: =SUM(J69:J72) -> 0
C77: Tilskuddsordning til opplæring i norsk og samfunnskunnskap for asylsøkarar i mottak 2021
C78: Kommuner som tilbyr opplæring til asylsøkere i norsk, norsk kultur og norske verdier (NKNV) eller samfunnskunnskap. Tilskuddene utbetales per person som er i målgruppa for ordningene.
C79: Les mer om ordningen på imdi.no.
C81: Kategori | E81: Sats | F81: Antall personer i målgruppen | H81: Tilskuddsbeløp
C82: Opplæring i norsk for asysøkere | E82: 14700 | H82: =E82*F82 -> 0
C83: Opplæring i norsk kultur og norske verdier | E83: 4000 | H83: =E83*F83 -> 0
C84: Opplæring i samfunnskunnskap | E84: 2000 | H84: =E84*F84 -> 0
C85: Totalt | H85: =SUM(H82:H84) -> 0
C92: Oppsummeringstabell
C93: Denne tabellen oppsummerer sum av beregnet tilskudd til kommunen i 2021.
C94: Les mer om IMDis tilskuddsordninger på imdi.no.
C96: Tilskuddsordning
C97: Integreringstilskudd | F97: =I24 -> 0
C98: Særskilt tilskudd for bosetting av enslige mindreårige flyktninger | F98: =J47 -> 0
C99: Tilskudd til opplæring i norsk og samfunnskunnskap for voksne innvandrere | F99: =J60 -> 0
C100: Tilskudd for bosetting av personer med nedsatt funksjonsevne og/eller atferdsvansker | F100: =J73 -> 0
C101: Tilskudd til opplæring i norsk, norsk kultur og norske verdier for asylsøkere | F101: =H85 -> 0
C102: Totalt | F102: =SUM(F97:F101) -> 0
